bitfinex/quotes_ETHUSD_20230109
["timestamp","ask_amount","ask_price","bid_price","bid_amount"]
[1673250168757,25.326375,1313.3,1313.0,4.0]
[1673250169018,10.096825,1313.3,1313.0,4.0]
[1673250169231,7.84406,1313.4,1313.0,17.96891954]
[1673250169443,7.84406,1313.4,1313.0,10.35284954]
[1673250169603,7.84406,1313.4,1313.0,4.0]
[1673250169807,15.45812,1313.4,1313.0,7.616787]
[1673250170264,15.45812,1313.4,1313.0,13.96963654]
[1673250170482,15.45812,1313.4,1313.0,7.616787]
[1673250170805,7.84406,1313.4,1313.0,15.232897]
[1673250171013,13.13337099,1313.4,1313.0,21.58574654]
[1673250172839,13.13313099,1313.4,1313.0,13.96963654]
[1673250174166,0.23,1313.4,1313.0,29.20180654]
[1673250175055,31.831,1313.5,1313.0,36.81794654]
[1673250175233,30.09,1313.5,1313.0,38.56494654]
[1673250175673,30.09,1313.5,1313.1,3.0]
[1673250176003,41.705482,1313.5,1313.1,11.187]
[1673250176806,49.318732,1313.5,1313.1,3.5717]
[1673250177424,41.705482,1313.5,1313.1,11.18721]
[1673250178210,45.69463151,1313.5,1313.1,3.5717]
[1673250178427,45.69463151,1313.5,1313.1,0.56831599]
[1673250178428,0.23,1313.4,1313.1,0.56831599]
[1673250178739,30.4576,1313.3,1313.0,16.8496]
[1673250179049,33.52636,1313.3,1313.0,4.5718]
[1673250179227,25.91196,1313.3,1313.0,4.5718]
[1673250180417,18.29756,1313.3,1313.0,4.5718]
[1673250181208,10.68316,1313.3,1313.0,4.5718]
[1673250184779,18.29756,1313.3,1313.0,4.5718]
[1673250185327,10.68316,1313.3,1313.0,4.5718]
[1673250186147,10.68316,1313.3,1313.0,4.0]
[1673250186810,3.06876,1313.3,1313.0,4.0]
[1673250188672,10.68322,1313.3,1313.0,4.0]
[1673250193082,3.06876,1313.3,1313.0,4.0]
[1673250193724,3.06876,1313.3,1313.0,11.61611]
[1673250193968,0.23,1313.4,1313.0,19.23225]
[1673250194162,4.21914951,1313.4,1313.0,19.23225]
[1673250194566,11.83301951,1313.4,1313.0,11.61611]
[1673250195503,4.21914951,1313.4,1313.0,19.23225]
[1673250196521,4.21914951,1313.4,1313.0,11.61611]
[1673250196702,0.05,1313.2,1313.0,11.61611]
[1673250196864,8.81162066,1313.4,1313.0,11.61611]
[1673250197235,16.42552066,1313.4,1313.0,4.0]
[1673250197554,16.42552066,1313.4,1313.0,11.61604]
[1673250198229,24.03942066,1313.4,1313.0,4.0]
[1673250198888,4.82247115,1313.4,1313.0,10.35284954]
[1673250199100,4.82247115,1313.4,1313.0,19.23207]
[1673250199296,4.82247115,1313.4,1313.0,11.61593]
[1673250199723,12.43634115,1313.4,1313.0,11.61317087]
[1673250199912,4.82247115,1313.4,1313.0,11.61317087]
[1673250200123,4.82247115,1313.4,1313.0,19.22931087]
[1673250200648,4.82247115,1313.4,1313.1,1.25407771]
[1673250203008,4.82247115,1313.4,1313.1,16.48512771]
[1673250203223,4.82247115,1313.4,1313.1,8.86956771]
[1673250203441,4.82247115,1313.4,1313.1,16.48512771]
[1673250203954,4.82247115,1313.4,1313.1,8.86956771]
[1673250204542,4.82247115,1313.4,1313.1,16.48512771]
[1673250205416,4.82247115,1313.4,1313.1,8.86956771]
[1673250207317,4.82247115,1313.4,1313.1,1.25407771]
[1673250207846,12.43634115,1313.4,1313.1,1.25407771]
[1673250208459,4.82247115,1313.4,1313.1,1.25407771]
[1673250209085,12.43637115,1313.4,1313.1,1.25407771]
[1673250209955,4.82247115,1313.4,1313.1,1.25407771]
[1673250211003,12.43633115,1313.4,1313.1,1.25407771]
[1673250211221,4.82247115,1313.4,1313.1,1.25407771]
[1673250211534,12.43633115,1313.4,1313.1,1.25407771]
[1673250213363,4.82247115,1313.4,1313.1,1.25407771]
[1673250214664,12.43630115,1313.4,1313.1,1.25407771]
[1673250216770,32.416649,1313.4,1313.1,1.25407771]
[1673250222619,32.416649,1313.4,1313.1,1.25206784]
[1673250223038,3.98914951,1313.3,1313.1,1.25206784]
[1673250223285,7.84498,1313.2,1313.1,1.25206784]
[1673250223709,0.23,1313.2,1313.1,1.25206784]
[1673250224362,7.84498,1313.2,1313.1,1.25206784]
[1673250224513,0.23,1313.2,1313.1,1.25206784]
[1673250225718,27.06408951,1313.2,1313.1,1.25206784]
[1673250225910,30.93247878,1313.2,1313.1,1.25206784]
[1673250226316,23.31749878,1313.2,1313.1,1.25206784]
[1673250226726,15.70251878,1313.2,1313.1,1.25206784]
[1673250230078,8.08753878,1313.2,1313.1,1.25206784]
[1673250230293,4.21914951,1313.2,1313.1,1.25206784]
[1673250230652,11.83412951,1313.2,1313.1,1.25206784]
[1673250234763,16.83412951,1313.2,1313.1,1.25206784]
[1673250240164,11.83412951,1313.2,1313.1,1.25206784]
[1673250243361,11.83412951,1313.2,1313.1,1.24824817]
[1673250243532,14.6168363,1313.2,1313.1,1.24824817]
[1673250245437,7.0018563,1313.2,1313.1,1.24824817]
[1673250245690,14.6168363,1313.2,1313.1,1.24824817]
[1673250246297,14.6168363,1313.2,1313.1,1.14824817]
[1673250251782,7.0018563,1313.2,1313.1,1.14824817]
[1673250252634,14.6168363,1313.2,1313.1,1.14824817]
[1673250254980,7.0018563,1313.2,1313.1,1.14824817]
[1673250256149,14.6168363,1313.2,1313.1,1.14824817]
[1673250256823,7.0018563,1313.2,1313.1,1.14824817]
[1673250259697,29.8467963,1313.2,1313.1,1.14824817]
[1673250259904,36.18203464,1313.2,1313.1,1.14824817]
[1673250268011,36.18203464,1313.2,1313.1,1.14515165]
[1673250268440,31.18203464,1313.2,1313.1,1.14515165]
[1673250269328,36.18203464,1313.2,1313.1,1.14515165]
[1673250269572,28.56705464,1313.2,1313.1,1.14515165]
[1673250270620,35.61033464,1313.2,1313.1,1.14515165]
[1673250275707,12.76539464,1313.2,1313.1,1.14515165]
[1673250275882,12.0018563,1313.2,1313.1,1.14515165]
[1673250276315,19.6168363,1313.2,1313.1,1.14515165]
[1673250276760,27.2318163,1313.2,1313.1,1.14515165]
[1673250278227,27.2318163,1313.2,1313.1,1.04515165]
[1673250283443,22.2318163,1313.2,1313.1,1.04515165]
[1673250284405,27.2318163,1313.2,1313.1,1.04515165]
[1673250285448,34.8467963,1313.2,1313.1,1.04515165]
[1673250293048,27.2318163,1313.2,1313.1,1.04515165]
[1673250296156,29.8467963,1313.2,1313.1,1.04515165]
[1673250296364,22.2318163,1313.2,1313.1,1.04515165]
[1673250296824,27.2318163,1313.2,1313.1,1.04515165]
[1673250298316,34.8467963,1313.2,1313.1,1.04515165]
[1673250300397,27.2318163,1313.2,1313.1,1.04515165]
[1673250300609,27.2318163,1313.2,1313.1,1.04314007]
[1673250304034,19.6168363,1313.2,1313.1,1.04314007]
[1673250305312,14.6168363,1313.2,1313.1,1.04314007]
[1673250306134,19.6168363,1313.2,1313.1,1.04314007]
[1673250312449,19.6168363,1313.2,1313.1,0.94314007]
[1673250312659,14.6168363,1313.2,1313.1,0.94314007]
[1673250313433,19.6168363,1313.2,1313.1,0.94314007]
[1673250317739,27.2318163,1313.2,1313.1,0.94314007]
[1673250317956,27.1318163,1313.2,1313.1,0.94314007]
[1673250318508,19.5168363,1313.2,1313.1,0.94314007]
[1673250319323,29.7467963,1313.2,1313.1,0.94314007]
[1673250319739,22.1318163,1313.2,1313.1,0.94314007]
[1673250320113,5.92760949,1313.4,1313.1,0.94314007]
[1673250320321,21.61254,1313.7,1313.2,6.38746778]
[1673250320574,3.98914951,1313.6,1313.2,6.95916778]
[1673250320792,3.98914951,1313.6,1313.2,9.27251057]
[1673250320984,11.60188951,1313.6,1313.2,13.27251057]
[1673250323118,0.23,1313.5,1313.2,13.27251057]
[1673250323309,7.61274,1313.6,1313.2,20.88728057]
[1673250323738,24.6138,1313.7,1313.2,28.50226057]
[1673250323903,0.23,1313.6,1313.2,28.50226057]
[1673250324108,0.23,1313.6,1313.3,4.0]
[1673250324357,0.23,1313.6,1313.3,13.71404767]
[1673250324570,0.23,1313.6,1313.3,7.32657989]
[1673250325421,7.84269,1313.6,1313.3,7.32657989]
[1673250326640,7.84269,1313.6,1313.4,0.5716]
[1673250327418,0.23,1313.6,1313.4,0.5716]
[1673250329630,0.23,1313.6,1313.3,14.28574767]
[1673250329869,0.23,1313.6,1313.3,7.89827989]
[1673250330983,7.84275,1313.6,1313.3,7.89827989]
[1673250336162,7.84275,1313.6,1313.3,3.89827989]
[1673250337447,23.06816,1313.6,1313.3,3.89827989]
[1673250337656,31.40601446,1313.6,1313.3,0.5717]
[1673250338282,31.40601446,1313.6,1313.2,3.5717]
[1673250340973,31.40601446,1313.6,1313.2,3.56852723]
[1673250343204,23.79326446,1313.6,1313.2,3.56852723]
[1673250343382,23.79326446,1313.6,1313.2,7.50760874]
[1673250344048,31.40601446,1313.6,1313.2,7.50760874]
[1673250347525,23.79326446,1313.6,1313.2,7.50760874]
[1673250348112,31.40601446,1313.6,1313.2,7.50760874]
[1673250348578,23.79326446,1313.6,1313.2,7.50760874]
[1673250349105,0.05,1313.4,1313.2,7.50760874]
[1673250349287,33.44523729,1313.6,1313.2,7.50760874]
[1673250349494,31.13722596,1313.6,1313.2,3.56852723]
[1673250353903,31.13722596,1313.6,1313.2,2.99682723]
[1673250356141,23.52401596,1313.6,1313.2,2.99682723]
[1673250356355,23.52401596,1313.6,1313.2,7.76303496]
[1673250358662,8.29860596,1313.6,1313.2,7.76303496]
[1673250358886,19.44490951,1313.6,1313.2,7.76303496]
[1673250362674,11.83180951,1313.6,1313.2,15.37798496]
[1673250363335,11.83180951,1313.6,1313.2,21.76482131]
[1673250363484,11.83180951,1313.6,1313.2,21.76152754]
[1673250367840,19.44490951,1313.6,1313.2,14.14657754]
[1673250369941,19.44490951,1313.6,1313.2,14.14720897]
[1673250370151,23.03233846,1313.6,1313.2,14.14720897]
[1673250370363,23.03233846,1313.6,1313.2,7.75974119]
[1673250370935,23.03233846,1313.6,1313.2,14.14720897]
[1673250371289,23.03233846,1313.6,1313.2,7.75974119]
[1673250371415,23.03233846,1313.6,1313.2,14.14720897]
[1673250371624,23.03233846,1313.6,1313.2,7.75974119]
[1673250371987,23.03233846,1313.6,1313.2,2.99353346]
[1673250372360,52.76703846,1313.6,1313.2,2.99353346]
[1673250373202,37.54083846,1313.6,1313.2,9.38100124]
[1673250373428,37.54083846,1313.6,1313.2,10.60847346]
[1673250375553,45.15393846,1313.6,1313.2,2.99353346]
[1673250378242,45.15393846,1313.6,1313.2,7.75939181]
[1673250378450,45.15393846,1313.6,1313.2,14.14685959]
[1673250378707,45.15393846,1313.6,1313.2,7.75939181]
[1673250380031,45.15393846,1313.6,1313.2,14.14685959]
[1673250380243,45.15393846,1313.6,1313.2,7.75939181]
[1673250380457,45.15393846,1313.6,1313.2,14.14685959]
[1673250381331,45.15393846,1313.6,1313.2,7.75939181]
[1673250381725,45.15393846,1313.6,1313.3,5.15286951]
[1673250381939,37.54083846,1313.6,1313.3,5.15286951]
[1673250384030,45.15393846,1313.6,1313.3,5.15286951]
[1673250384243,45.15393846,1313.6,1313.3,5.15021859]
[1673250386264,52.76713846,1313.6,1313.3,5.15021859]
[1673250386646,52.76713846,1313.6,1313.3,1.15021859]
[1673250390792,45.15393846,1313.6,1313.3,1.15021859]
[1673250393124,25.93902895,1313.6,1313.4,4.0]
[1673250393290,22.3516,1313.6,1313.4,4.0]
[1673250396442,0.05,1313.5,1313.4,4.0]
[1673250396771,22.3516,1313.6,1313.4,4.0]
[1673250397546,16.42933,1313.7,1313.4,4.0]
[1673250397772,20.9227,1313.8,1313.4,20.48471468]
[1673250397948,20.9227,1313.8,1313.5,3.0]
[1673250397949,0.23,1313.6,1313.5,3.0]
[1673250398156,0.23,1313.7,1313.5,3.0]
[1673250399246,0.23,1313.7,1313.4,30.09111431]
[1673250399406,0.23,1313.7,1313.4,36.47292536]
[1673250402683,0.23,1313.7,1313.4,28.85910536]
[1673250403316,20.9227,1313.8,1313.4,36.47292536]
[1673250403530,0.085,1313.8,1313.4,36.47292536]
[1673250404619,0.14874221,1314.6,1313.6,4.877]
[1673250404777,0.739174,1314.8,1313.9,22.83156]
[1673250404993,0.739174,1314.8,1314.0,11.00408531]
[1673250405239,6.4435358,1314.7,1314.2,7.60896]
[1673250405460,6.4435358,1314.7,1314.1,18.04607328]
[1673250405461,0.5414,1314.6,1314.1,18.04607328]
[1673250405673,6.4435358,1314.6,1314.1,11.60938]
[1673250405827,8.46378478,1314.7,1314.1,19.21915]
[1673250406037,8.46378478,1314.7,1314.1,25.64714763]
[1673250406296,8.46378478,1314.7,1314.1,25.648357]
[1673250406685,3.98914951,1314.6,1314.1,25.648357]
[1673250407039,5.23444294,1314.6,1314.1,29.50767853]
[1673250407831,0.23,1314.5,1314.1,29.50767853]
[1673250408568,0.23,1314.5,1314.1,37.11744853]
[1673250409094,0.23,1314.5,1314.2,0.5713]
[1673250409301,3.98914951,1314.4,1314.1,0.5713]
[1673250409523,7.83865,1314.3,1314.0,0.5714]
[1673250409748,8.60218834,1314.3,1313.9,12.18204]
[1673250410181,16.21083834,1314.3,1313.9,4.5714]
[1673250410359,16.21083834,1314.3,1313.9,0.5714]
[1673250410360,3.98914951,1314.2,1313.9,0.5714]
[1673250410583,12.36208785,1314.2,1313.9,0.5714]
[1673250410931,0.23,1314.1,1313.9,0.5714]
[1673250411085,12.59256785,1314.1,1313.7,0.5715]
[1673250411293,29.31055902,1314.1,1313.7,0.5715]
[1673250411502,11.19622365,1314.0,1313.7,0.5715]
[1673250411717,23.06276,1313.9,1313.6,0.5715]
[1673250411928,34.25898365,1313.9,1313.6,0.5715]
[1673250412181,34.25898365,1313.9,1313.4,4.03018429]
[1673250412182,0.76353834,1313.8,1313.5,0.5716]
[1673250412389,0.23,1313.7,1313.5,0.5716]
[1673250412925,0.23,1313.7,1313.5,8.18451]
[1673250413922,0.23,1313.7,1313.5,15.79775]
[1673250414581,0.23,1313.7,1313.5,8.18451]
[1673250414778,0.23,1313.7,1313.5,10.16731543]
[1673250415232,0.23,1313.7,1313.5,2.55440543]
[1673250415602,0.23,1313.7,1313.5,0.5716]
[1673250416249,7.84214,1313.7,1313.5,0.5716]
[1673250416456,0.23,1313.7,1313.5,0.5716]
[1673250416874,7.61041,1314.0,1313.5,11.00428531]
[1673250417088,7.61041,1314.0,1313.5,20.12042227]
[1673250417295,7.61041,1314.0,1313.5,27.7318023]
[1673250417545,10.43268531,1314.0,1313.5,17.30097696]
[1673250417719,18.58493531,1314.0,1313.5,15.79753]
[1673250417931,10.97458531,1314.0,1313.5,23.41077]
[1673250418490,0.23,1313.9,1313.5,23.41077]
[1673250419596,0.23,1313.9,1313.5,29.85181985]
[1673250419841,0.23,1313.9,1313.5,26.79897041]
[1673250420602,17.20647537,1314.1,1313.6,4.0]
[1673250420747,16.66457537,1314.1,1313.7,22.83538]
[1673250421218,6.4435358,1314.0,1313.5,0.5716]
[1673250421434,7.61121,1313.9,1313.5,0.5716]
[1673250421591,15.61493392,1314.0,1313.5,15.79801]
[1673250421800,0.23,1313.9,1313.5,15.79801]
[1673250422644,0.23,1313.9,1313.5,23.41125]
[1673250423324,0.23,1313.9,1313.5,8.18477]
[1673250423484,0.23,1313.9,1313.5,15.79801]
[1673250423910,11.83007951,1313.9,1313.5,8.18477]
[1673250424163,15.58108648,1313.9,1313.5,8.18477]
[1673250424959,7.97015648,1313.9,1313.5,8.18477]
[1673250425203,4.21914951,1313.9,1313.5,8.18477]
[1673250425633,11.83008951,1313.9,1313.5,8.18477]
[1673250427951,23.99,1314.2,1313.6,10.43268531]
[1673250428167,23.99,1314.2,1313.8,22.83376]
[1673250428333,20.99,1314.2,1313.8,32.66109033]
[1673250428552,20.99,1314.2,1313.8,26.21755453]
[1673250429198,20.99,1314.2,1313.8,26.21487631]
[1673250430745,20.99,1314.2,1313.8,32.65841211]
[1673250431816,20.99,1314.2,1313.8,26.21487631]
[1673250432026,20.99,1314.2,1313.8,32.65841211]
[1673250433498,0.05,1313.9,1313.8,32.65841211]
[1673250433704,20.99,1314.2,1313.8,26.21487631]
[1673250433954,20.99,1314.2,1313.8,32.65841211]
[1673250434703,20.99,1314.2,1313.8,26.21487631]
[1673250436143,20.99,1314.2,1313.8,32.65841211]
[1673250436545,20.99,1314.2,1313.8,36.65841211]
[1673250440161,20.99,1314.2,1313.8,30.21487631]
[1673250440378,20.99,1314.2,1313.8,36.65841211]
[1673250442009,20.99,1314.2,1313.8,30.21487631]
[1673250442794,20.99,1314.2,1313.8,36.65841211]
[1673250442959,20.99,1314.2,1313.8,30.21487631]
[1673250443169,20.99,1314.2,1313.8,36.65841211]
[1673250443745,20.99,1314.2,1313.8,30.21487631]
[1673250444476,20.99,1314.2,1313.8,36.65841211]
[1673250445212,20.99,1314.2,1313.8,30.21487631]
[1673250448023,20.99,1314.2,1313.8,36.65841211]
[1673250448857,20.99,1314.2,1313.9,4.0]
[1673250449109,20.99,1314.2,1313.9,8.06584121]
[1673250449289,20.99,1314.2,1314.0,15.2207]
[1673250449623,20.99,1314.2,1314.0,7.61035]
[1673250451298,9.1604,1314.4,1314.0,7.61035]
[1673250451623,30.2111,1314.4,1314.1,4.0]
[1673250451782,30.2111,1314.4,1314.2,22.82757]
[1673250451991,21.5927,1314.4,1314.2,22.82757]
[1673250452355,0.542,1314.6,1314.2,22.82757]
[1673250452568,22.1347,1314.6,1314.2,22.82757]
[1673250453392,21.5927,1314.6,1314.2,29.8424058]
[1673250453585,21.5927,1314.6,1314.2,34.17488316]
[1673250453805,21.5927,1314.6,1314.2,4.90377736]
[1673250453806,29.74192,1314.6,1314.2,4.90377736]
[1673250454205,9.0122,1314.7,1314.2,30.5523036]
[1673250454430,9.0122,1314.7,1314.2,27.73124736]
[1673250454622,21.95447198,1314.7,1314.2,27.73124736]
[1673250455066,29.56071198,1314.7,1314.2,27.73124736]
[1673250455264,39.99339729,1314.7,1314.2,12.51286736]
[1673250455609,39.99339729,1314.7,1314.2,8.18039]
[1673250455932,7.83708,1314.6,1314.2,8.18039]
[1673250456611,19.43330951,1314.6,1314.2,0.5713]
[1673250456824,15.96500266,1314.6,1314.2,8.18043]
[1673250457348,8.35792266,1314.6,1314.2,15.78962]
[1673250458191,0.05,1314.4,1314.2,8.18043]
[1673250458401,15.96480266,1314.6,1314.2,8.18043]
[1673250459076,14.80145846,1314.6,1314.2,0.5713]
[1673250459285,0.00214007,1314.2,1314.1,7.5217]
[1673250459504,7.61133007,1314.2,1314.0,4.5714]
[1673250459664,0.00214007,1314.2,1314.0,6.7399]
[1673250460117,0.00214007,1314.2,1314.0,6.1685]
[1673250460573,0.00214007,1314.2,1314.0,13.77874]
[1673250460864,0.00214007,1314.2,1314.0,21.38909]
[1673250461188,0.00214007,1314.2,1314.0,28.99944]
[1673250461349,0.00214007,1314.2,1314.1,0.5713]
[1673250461556,0.00214007,1314.2,1314.0,6.7399]
[1673250462338,0.05214007,1314.2,1314.0,6.7399]
[1673250462493,0.00214007,1314.2,1314.0,6.7399]
[1673250464030,0.00214007,1314.2,1314.0,4.5714]
[1673250464337,0.00214007,1314.2,1314.0,19.78986762]
[1673250464498,0.00214007,1314.2,1314.0,27.40021762]
[1673250465180,0.00214007,1314.2,1314.0,19.78986762]
[1673250466011,0.00214007,1314.2,1314.0,27.40021762]
[1673250466232,0.00214007,1314.2,1314.0,19.78986762]
[1673250466401,0.00214007,1314.2,1314.0,27.40021762]
[1673250466752,0.00214007,1314.2,1314.0,19.78986762]
[1673250467126,0.00214007,1314.2,1314.0,12.17951762]
[1673250467462,0.00214007,1314.2,1314.0,3.99785762]
[1673250468592,15.22112007,1314.2,1313.9,25.1672]
[1673250468833,18.17126279,1314.2,1313.9,12.516]
[1673250469053,25.78094279,1314.2,1313.9,12.516]
[1673250469488,25.78094279,1314.2,1313.9,4.5714]
[1673250470228,25.78094279,1314.2,1313.8,4.5714]
[1673250470956,46.81394279,1314.2,1313.8,4.5714]
[1673250472320,46.81394279,1314.2,1313.8,8.258695]
[1673250473702,39.20426279,1314.2,1313.8,8.258695]
[1673250473944,0.23,1314.1,1313.8,7.687295]
[1673250474322,0.23,1314.1,1313.8,15.298765]
[1673250475192,0.23,1314.1,1313.8,11.298765]
[1673250475417,0.23,1314.1,1313.8,3.687295]
[1673250475418,7.8398,1314.1,1313.8,3.687295]
[1673250477306,0.23,1314.1,1313.8,3.687295]
[1673250477526,0.23,1314.1,1313.8,11.298555]
[1673250477682,0.23,1314.1,1313.8,18.910055]
[1673250479072,0.23,1314.1,1313.8,11.298555]
[1673250479501,0.23,1314.1,1313.8,7.61126]
[1673250479709,0.23,1314.1,1313.7,40.48459]
[1673250480271,0.23,1314.1,1313.7,48.09639]
[1673250480573,0.23,1314.1,1313.7,54.5399258]
[1673250480794,0.23,1314.1,1313.7,62.05514838]
[1673250481166,21.88693669,1314.1,1313.7,32.77632258]
[1673250481429,29.49682669,1314.1,1313.7,21.2611]
[1673250481606,42.4270762,1314.1,1313.7,8.2783]
[1673250481812,42.4270762,1314.1,1313.7,7.7068]
[1673250482157,48.82750783,1314.1,1313.7,7.7068]
[1673250483691,48.82750783,1314.1,1313.6,8.18416]
[1673250483906,48.82750783,1314.1,1313.6,0.5715]
[1673250483907,22.83312,1313.9,1313.6,0.5715]
[1673250484130,7.8418,1313.8,1313.5,21.206]
[1673250484373,10.79179629,1313.8,1313.5,0.5716]
[1673250484981,0.05,1313.7,1313.5,0.5716]
[1673250485206,7.8418,1313.8,1313.5,0.5716]
[1673250485950,15.4536,1313.8,1313.5,0.5716]
[1673250486140,15.4536,1313.8,1313.4,11.84448429]
[1673250486141,20.806024,1313.8,1313.4,12.41608429]
[1673250486324,13.194224,1313.8,1313.4,12.41608429]
[1673250486995,13.194224,1313.8,1313.4,12.41292084]
[1673250487312,5.582724,1313.8,1313.4,27.64040084]
[1673250487469,5.582724,1313.8,1313.4,33.35822229]
[1673250487896,5.582724,1313.8,1313.4,40.97204229]
[1673250488180,13.194274,1313.8,1313.4,25.74440229]
[1673250488996,13.194274,1313.8,1313.4,20.02658084]
[1673250489648,17.18342351,1313.8,1313.4,20.02658084]
[1673250489846,9.57187351,1313.8,1313.4,20.02658084]
[1673250489994,9.57187351,1313.8,1313.4,27.64040084]
[1673250490765,38.83522573,1313.8,1313.4,8.41292084]
[1673250491088,38.70352658,1313.8,1313.5,0.14633239]
[1673250491301,32.17655351,1313.8,1313.5,0.14633239]
[1673250491511,32.05802427,1313.8,1313.5,0.14633239]
[1673250491680,37.39792036,1313.8,1313.5,0.14633239]
[1673250491931,30.99126113,1313.8,1313.5,0.14633239]
[1673250493260,0.23,1313.7,1313.5,0.14633239]
[1673250493471,7.61266,1313.6,1313.5,0.14633239]
[1673250493682,7.84266,1313.6,1313.5,0.14633239]
[1673250494515,0.23,1313.6,1313.5,0.14633239]
[1673250494985,7.84266,1313.6,1313.5,0.14633239]
[1673250497223,15.45532,1313.6,1313.5,0.14633239]
[1673250497600,23.06798,1313.6,1313.5,0.14633239]
[1673250498022,3.416738,1313.6,1313.5,0.14633239]
[1673250498246,11.029398,1313.6,1313.5,0.14633239]
[1673250499021,18.642058,1313.6,1313.5,0.14633239]
[1673250499190,11.029398,1313.6,1313.5,0.14633239]
[1673250502734,11.029398,1313.6,1313.5,1.34702652]
[1673250505583,18.642058,1313.6,1313.5,1.34702652]
[1673250506368,11.029398,1313.6,1313.5,1.34702652]
[1673250508199,7.84266,1313.6,1313.5,1.34702652]
[1673250508452,8.7994,1313.7,1313.5,16.57350652]
[1673250508643,8.7994,1313.7,1313.5,8.96026652]
[1673250508833,8.7994,1313.7,1313.5,1.34702652]
[1673250509044,8.7994,1313.7,1313.5,2.24578426]
[1673250509407,36.80022,1313.9,1313.5,9.85892426]
[1673250509558,49.41246951,1313.9,1313.5,2.24578426]
[1673250509771,55.16893846,1313.9,1313.5,2.24578426]
[1673250509982,0.23,1313.8,1313.5,2.24578426]
[1673250510227,0.23,1313.8,1313.5,2.81738426]
[1673250510665,0.23,1313.8,1313.5,9.85891426]
[1673250511305,0.23,1313.8,1313.5,2.24578426]
[1673250511770,0.05,1313.7,1313.5,2.24578426]
[1673250511994,0.23,1313.8,1313.5,2.24578426]
[1673250512145,0.23,1313.8,1313.5,1.34702652]
[1673250512355,7.84172,1313.8,1313.5,1.34702652]
[1673250514457,0.23,1313.8,1313.5,1.34702652]
[1673250514673,7.84156,1313.8,1313.5,1.33502652]
[1673250514883,14.14262585,1313.8,1313.5,1.33502652]
[1673250518821,21.75418585,1313.8,1313.5,1.33502652]
[1673250520782,35.77230063,1313.8,1313.5,1.33502652]
[1673250520988,29.36574585,1313.8,1313.5,1.33502652]
[1673250521332,35.77230784,1313.8,1313.5,1.33502652]
[1673250521560,10.39633052,1313.7,1313.5,1.33502652]
[1673250521766,34.66978951,1313.6,1313.5,1.33502652]
[1673250522383,27.05712951,1313.6,1313.5,1.33502652]
[1673250523227,27.05712951,1313.6,1313.5,1.32302652]
[1673250529380,41.07013888,1313.6,1313.5,1.32302652]
[1673250529590,27.05712951,1313.6,1313.5,1.32302652]
[1673250529799,30.77861706,1313.6,1313.5,1.32302652]
[1673250532159,37.17960394,1313.6,1313.5,1.32302652]
[1673250532313,37.17960391,1313.6,1313.5,1.32302652]
[1673250532527,30.23681706,1313.6,1313.5,1.32302652]
[1673250533955,35.23681706,1313.6,1313.5,1.32302652]
[1673250536045,27.62415706,1313.6,1313.5,1.32302652]
[1673250536275,35.23681706,1313.6,1313.5,1.32302652]
[1673250536417,27.62415706,1313.6,1313.5,1.32302652]
[1673250538774,7.39883706,1313.6,1313.5,1.32302652]
[1673250538970,4.21914951,1313.6,1313.5,1.32302652]
[1673250540553,0.23,1313.6,1313.5,8.93626652]
[1673250540745,0.23,1313.7,1313.5,1.32302652]
[1673250541088,4.21914951,1313.7,1313.5,1.32302652]
[1673250541283,4.21914951,1313.7,1313.5,8.93625652]
[1673250541461,4.21914951,1313.7,1313.5,1.32302652]
[1673250545388,11.83124951,1313.7,1313.5,1.32302652]
[1673250545566,22.83311705,1313.7,1313.5,1.32302652]
[1673250547295,22.83311705,1313.7,1313.5,1.32017277]
[1673250547296,3.61976754,1313.7,1313.5,1.32017277]
[1673250547460,0.23,1313.7,1313.5,1.32017277]
[1673250548567,7.84212,1313.7,1313.5,1.32017277]
[1673250548737,0.23,1313.7,1313.5,1.32017277]
[1673250549349,0.23,1313.7,1313.5,3.00932813]
[1673250549565,7.84214,1313.7,1313.5,3.00932813]
[1673250556820,0.23,1313.7,1313.5,3.00932813]
[1673250557915,0.23,1313.8,1313.5,3.00932813]
[1673250558100,7.84158,1313.8,1313.5,3.00932813]
[1673250560313,7.84158,1313.8,1313.5,7.00932813]
[1673250563057,0.23,1313.8,1313.5,7.00932813]
[1673250563254,0.23,1313.8,1313.5,19.35534231]
[1673250563433,0.23,1313.8,1313.5,34.58182231]
[1673250563798,0.23,1313.8,1313.5,28.15978277]
[1673250564019,0.23,1313.8,1313.5,34.58182231]
[1673250564334,0.23,1313.8,1313.5,33.17509609]
[1673250567166,0.23,1313.8,1313.5,39.59713563]
[1673250567322,0.05,1313.7,1313.5,33.17509609]
[1673250567532,0.23,1313.8,1313.5,33.17509609]
[1673250568109,0.23,1313.8,1313.5,25.55809003]
[1673250568531,0.23,1313.8,1313.5,26.12969003]
[1673250578034,0.23,1313.8,1313.5,18.51645003]
[1673250579867,7.84181,1313.8,1313.5,10.90332003]
[1673250580085,7.84181,1313.8,1313.5,5.88800671]
[1673250580456,7.84181,1313.8,1313.5,1.88800671]
[1673250580988,15.45362,1313.8,1313.5,1.88800671]
[1673250582672,23.06543,1313.8,1313.5,1.88800671]
[1673250583519,23.06543,1313.8,1313.5,1.31640671]
[1673250583743,26.234283,1313.8,1313.5,1.31640671]
[1673250585543,18.622163,1313.8,1313.5,1.31640671]
[1673250585857,11.010353,1313.8,1313.5,1.31640671]
[1673250587952,0.05,1313.7,1313.5,1.31640671]
[1673250588154,11.010353,1313.8,1313.5,1.31640671]
[1673250588155,25.02893062,1313.8,1313.5,1.31640671]
[1673250588466,26.234123,1313.8,1313.5,1.31371612]
[1673250588654,11.010353,1313.8,1313.5,1.31371612]
[1673250590084,0.05,1313.7,1313.5,1.31371612]
[1673250590390,11.010353,1313.8,1313.5,1.31371612]
[1673250592971,36.6301575,1313.8,1313.5,1.31371612]
[1673250593346,30.22340251,1313.8,1313.5,1.31371612]
[1673250593490,22.61145251,1313.8,1313.5,1.31371612]
[1673250594155,30.22340251,1313.8,1313.5,1.31371612]
[1673250595387,22.61145251,1313.8,1313.5,1.31371612]
[1673250599003,7.38800251,1313.8,1313.5,1.31371612]
[1673250599393,7.38800251,1313.8,1313.5,8.92661612]
[1673250599606,4.21914951,1313.8,1313.5,8.92661612]